bitfinex-derivatives/quotes_BNBF0:USTF0_20250630
["timestamp","ask_amount","ask_price","bid_price","bid_amount"]
[1751245598251,0.26597371,654.56,654.37,2.526]
[1751245608059,1.50442879,655.05,654.37,2.526]
[1751245608264,0.26590359,654.68,654.37,2.526]
[1751245608558,1.50442879,655.04,654.37,2.526]
[1751245608760,0.2658914,654.69,654.37,2.526]
[1751245609058,1.50442879,655.01,654.37,2.526]
[1751245609260,1.50442879,654.95,654.37,2.526]
[1751245609460,1.50442879,654.93,654.37,2.526]
[1751245610261,0.26590359,654.8,654.37,2.526]
[1751245618267,0.26590359,654.8,654.38,3.501]
[1751245621564,0.26590359,654.8,654.39,1.097922]
[1751245621763,0.26590359,654.8,654.4,1.097922]
[1751245621964,0.26590359,654.8,654.41,1.097922]
[1751245622268,0.26590359,654.8,654.42,1.097922]
[1751245622468,0.26590359,654.8,654.43,1.097922]
[1751245622763,0.26590359,654.8,654.44,1.097922]
[1751245622963,0.26590359,654.8,654.45,1.097922]
[1751245623165,0.26590359,654.8,654.46,1.097922]
[1751245623468,0.26590359,654.8,654.47,1.097922]
[1751245623766,0.26590359,654.8,654.41,3.373]
[1751245623964,0.26590359,654.8,654.42,1.09819614]
[1751245624164,0.26590359,654.8,654.43,1.09819614]
[1751245624367,0.26590359,654.8,654.44,1.09819614]
[1751245624567,0.26590359,654.8,654.45,1.09819614]
[1751245624769,0.26590359,654.8,654.46,1.09819614]
[1751245624964,0.26590359,654.8,654.47,1.09819614]
[1751245625165,0.26590359,654.8,654.46,2.835]
[1751245625369,0.26590359,654.8,654.47,1.09836575]
[1751245625564,0.26590359,654.8,654.46,2.835]
[1751245625768,0.26590359,654.8,654.47,1.09852856]
[1751245625963,0.26590359,654.8,654.46,2.835]
[1751245637979,0.26590359,654.8,654.47,3.644]
[1751245651986,0.26590359,654.8,654.46,2.835]
[1751245653985,0.26590359,654.8,654.41,3.373]
[1751245654284,0.26590359,654.8,653.88,1.14109442]
[1751245654585,0.26590359,654.8,653.89,6.43540065]
[1751245654888,0.26590359,654.8,653.9,1.62230623]
[1751245655088,0.26590359,654.8,653.91,1.62230623]
[1751245655285,0.26590359,654.8,653.92,1.62230623]
[1751245655497,0.26590359,654.8,653.93,1.62230623]
[1751245655690,0.26590359,654.8,653.94,1.62230623]
[1751245655894,0.26590359,654.8,653.95,1.62230623]
[1751245656095,0.26590359,654.8,653.96,1.62230623]
[1751245656292,0.26590359,654.8,653.97,1.62230623]
[1751245656495,0.26590359,654.8,653.98,1.62230623]
[1751245656694,0.26590359,654.8,653.99,1.62230623]
[1751245656892,0.26590359,654.8,654.0,1.62230623]
[1751245657196,0.26590359,654.8,654.01,5.13830623]
[1751245657393,0.26590359,654.8,654.02,1.62230623]
[1751245657594,0.26590359,654.8,654.03,1.62230623]
[1751245657794,0.26590359,654.8,654.04,1.62230623]
[1751245658094,0.26590359,654.8,654.05,1.62230623]
[1751245658296,0.26590359,654.8,654.06,1.62230623]
[1751245658493,0.26590359,654.8,654.07,1.62230623]
[1751245658694,0.26590359,654.8,654.01,3.516]
[1751245658695,0.26590359,654.8,654.08,1.62230623]
[1751245658894,0.26590359,654.8,654.09,1.62230623]
[1751245659095,0.26590359,654.8,654.1,1.62230623]
[1751245659293,0.26590359,654.8,654.11,1.62230623]
[1751245659499,0.26590359,654.8,654.12,1.62230623]
[1751245659696,0.26590359,654.8,654.13,1.62230623]
[1751245659895,0.26590359,654.8,654.14,1.62230623]
[1751245660096,0.26590359,654.8,654.15,1.62230623]
[1751245660300,0.26590359,654.8,654.16,1.07194463]
[1751245660500,0.26590359,654.8,654.17,1.07194463]
[1751245660800,0.26590359,654.8,654.18,1.07194463]
[1751245661097,0.26590359,654.8,654.01,3.516]
[1751245661296,0.26590359,654.8,654.02,1.62387678]
[1751245661496,0.26590359,654.8,654.03,1.62387678]
[1751245661801,0.26590359,654.8,654.04,1.62387678]
[1751245662002,0.26590359,654.8,654.05,1.62387678]
[1751245662202,0.26590359,654.8,654.06,1.62387678]
[1751245662502,0.26590359,654.8,654.07,1.62387678]
[1751245662702,0.26590359,654.8,654.08,1.62387678]
[1751245662902,0.26590359,654.8,654.09,1.62387678]
[1751245663102,0.26590359,654.8,654.1,1.62387678]
[1751245663301,0.26590359,654.8,654.11,1.62387678]
[1751245663499,0.26590359,654.8,654.12,1.62387678]
[1751245663802,0.26590359,654.8,654.13,1.62387678]
[1751245664000,0.26590359,654.8,654.14,1.0730833]
[1751245664204,0.26590359,654.8,654.15,1.62392957]
[1751245664403,0.26590359,654.8,654.16,1.62392957]
[1751245664600,0.26590359,654.8,654.17,1.0730833]
[1751245664802,0.26590359,654.8,654.18,1.0730833]
[1751245665100,0.26590359,654.8,654.19,1.0730833]
[1751245665301,0.26590359,654.8,654.2,1.0730833]
[1751245665504,0.26590359,654.8,654.21,1.0730833]
[1751245665700,0.26590359,654.8,654.22,1.0730833]
[1751245665899,0.26590359,654.8,654.23,1.0730833]
[1751245666100,0.26590359,654.8,654.24,1.0730833]
[1751245666304,0.26590359,654.8,654.25,1.0730833]
[1751245666504,0.26590359,654.8,654.26,1.0730833]
[1751245666700,0.26590359,654.8,654.27,1.0730833]
[1751245666906,0.26590359,654.8,654.28,1.0730833]
[1751245667106,0.26590359,654.8,654.03,1.14109442]
[1751245667401,0.26590359,654.8,654.04,1.62425706]
[1751245667601,0.26590359,654.8,654.05,1.62425706]
[1751245667806,0.26590359,654.8,654.06,1.62425706]
[1751245668006,0.26590359,654.8,654.07,1.62425706]
[1751245668303,0.26590359,654.8,654.08,1.62425706]
[1751245668506,0.26590359,654.8,654.09,1.62425706]
[1751245668805,0.26590359,654.8,654.1,1.62425706]
[1751245669100,0.26590359,654.8,654.11,1.62425706]
[1751245669308,0.26590359,654.8,654.12,1.62425706]
[1751245669503,0.26590359,654.8,654.13,1.62425706]
[1751245669703,0.26590359,654.8,654.14,1.62425706]
[1751245669905,0.26590359,654.8,654.15,1.62425706]
[1751245670103,0.26590359,654.8,654.16,1.62425706]
[1751245670303,0.26590359,654.8,654.17,1.62425706]
[1751245670607,0.26590359,654.8,654.18,1.62425706]
[1751245670807,0.26590359,654.8,654.19,1.62425706]
[1751245671008,0.26590359,654.8,654.2,1.62425706]
[1751245671305,0.26590359,654.8,654.21,1.62425706]
[1751245671508,0.26590359,654.8,654.22,1.62425706]
[1751245671809,0.26590359,654.8,654.23,5.25325706]
[1751245672104,0.26590359,654.8,654.24,1.07337164]
[1751245672305,0.26590359,654.8,654.25,1.07337164]
[1751245672504,0.26590359,654.8,654.26,1.07337164]
[1751245672804,0.26590359,654.8,654.27,1.07337164]
[1751245673007,0.26590359,654.8,654.28,1.07337164]
[1751245673204,0.26590359,654.8,654.29,1.07337164]
[1751245673407,0.26590359,654.8,654.23,6.782]
[1751245673607,0.26590359,654.8,654.24,1.07346164]
[1751245673809,0.26590359,654.8,654.25,1.07346164]
[1751245674008,0.26590359,654.8,654.26,1.07346164]
[1751245674305,0.26590359,654.8,654.27,1.07346164]
[1751245674508,0.26590359,654.8,654.28,1.07346164]
[1751245674810,0.26590359,654.8,654.29,1.07346164]
[1751245675007,0.26590359,654.8,654.23,6.782]
[1751245682010,0.26590359,654.8,654.24,1.0736642]
[1751245682212,0.26590359,654.8,654.23,6.782]
[1751245682412,0.26590359,654.8,654.24,1.07377601]
[1751245682612,0.26590359,654.8,654.23,6.782]
[1751245682815,0.26590359,654.8,654.24,1.07377601]
[1751245683116,0.26590359,654.8,654.23,6.782]
[1751245683311,0.26590359,654.8,654.24,1.62573181]
[1751245683515,0.26590359,654.8,654.25,1.07379187]
[1751245683712,0.26590359,654.8,654.23,6.782]
[1751245684015,0.26590359,654.8,654.24,1.62587862]
[1751245684213,0.26590359,654.8,654.25,1.07393868]
[1751245684418,0.26590359,654.8,654.23,6.782]
[1751245684616,0.26590359,654.8,654.24,1.62610855]
[1751245684917,0.26590359,654.8,654.25,1.62610855]
[1751245685118,0.26590359,654.8,654.26,1.62610855]
[1751245685318,0.26590359,654.8,654.27,1.6262862]
[1751245685519,0.26590359,654.8,654.28,0.55198691]
[1751245685720,0.26590359,654.8,654.29,0.55198691]
[1751245686018,0.26590359,654.8,654.23,6.782]
[1751245686220,0.26590359,654.8,654.24,1.62638191]
[1751245686418,0.26590359,654.8,654.25,1.62638191]
[1751245686618,0.26590359,654.8,654.26,1.62638191]
[1751245686922,0.26590359,654.8,654.27,1.07431653]
[1751245687218,0.26590359,654.8,654.28,1.07431653]
[1751245687422,0.26590359,654.8,654.29,1.07431653]
[1751245687719,0.26590359,654.8,654.3,1.07431653]
[1751245688017,0.26590359,654.8,654.31,1.07431653]
[1751245688222,0.26590359,654.8,654.32,1.07431653]
[1751245688518,0.26590359,654.8,654.23,3.629]
[1751245688719,0.26590359,654.8,654.24,1.62674858]
[1751245688918,0.26590359,654.8,654.25,1.62674858]
[1751245689122,0.26590359,654.8,654.26,1.62674858]
[1751245689318,0.26590359,654.8,654.27,1.62674858]
[1751245689520,0.26590359,654.8,654.28,1.07455677]
[1751245689723,0.26590359,654.8,654.29,1.07455677]
[1751245690021,0.26590359,654.8,654.3,1.07455677]
[1751245690225,0.26590359,654.8,654.31,1.07455677]
[1751245690522,0.26590359,654.8,654.32,1.07455677]
[1751245690721,0.26590359,654.8,654.25,2.364]
[1751245691025,0.26590359,654.8,654.26,1.6270913]
[1751245691322,0.26590359,654.8,654.27,1.07473951]
[1751245691621,0.26590359,654.8,654.28,1.07473951]
[1751245691826,0.26590359,654.8,654.29,1.07473951]
[1751245692026,0.26590359,654.8,654.3,1.07473951]
[1751245692223,0.26590359,654.8,654.31,1.07473951]
[1751245692426,0.26590359,654.8,654.32,1.07473951]
[1751245692726,0.26590359,654.8,654.28,3.044]
[1751245692926,0.26590359,654.8,654.29,1.0749533]
[1751245693127,0.26590359,654.8,654.3,1.0749533]
[1751245693327,0.26590359,654.8,654.31,1.0749533]
[1751245693527,0.26590359,654.8,654.32,1.0749533]
[1751245693823,0.26590359,654.8,654.33,1.0749533]
[1751245694128,0.26590359,654.8,654.28,3.044]
[1751245694328,0.26590359,654.8,654.29,1.07507769]
[1751245694628,0.26590359,654.8,654.3,1.07507769]
[1751245694828,0.26590359,654.8,654.31,1.07507769]
[1751245695026,0.26590359,654.8,654.32,1.07507769]
[1751245695225,0.26590359,654.8,654.33,1.07507769]
[1751245695426,0.26590359,654.8,654.34,1.07507769]
[1751245695727,0.26590359,654.8,654.35,1.07507769]
[1751245695926,0.26590359,654.8,654.28,3.044]
[1751245696127,0.26590359,654.8,654.29,1.07529286]
[1751245696326,0.26590359,654.8,654.3,1.07529286]
[1751245696527,0.26590359,654.8,654.31,1.07529286]
[1751245696729,0.26590359,654.8,654.32,1.07529286]
[1751245696927,0.26590359,654.8,654.33,1.07529286]
[1751245697127,0.26590359,654.8,654.34,1.07529286]
[1751245697327,0.26590359,654.8,654.35,1.07529286]
[1751245697632,0.26590359,654.8,654.36,1.07529286]
[1751245697831,0.26590359,654.8,654.32,3.674]
[1751245698031,0.26590359,654.8,654.33,1.07549741]
[1751245698329,0.26590359,654.8,654.34,1.07549741]
[1751245698525,0.26590359,654.8,654.35,1.07549741]
[1751245698731,0.26590359,654.8,654.36,1.07549741]
[1751245698932,0.26590359,654.8,654.32,3.674]
[1751245699232,0.26590359,654.8,654.33,1.07548862]
[1751245699532,0.26590359,654.8,654.34,1.07548862]
[1751245699731,0.26590359,654.8,654.35,1.07548862]
[1751245700031,0.26590359,654.8,654.36,1.07548862]
[1751245700229,0.26590359,654.8,654.32,3.674]
[1751245700534,0.26590359,654.8,654.33,1.07547072]
[1751245700832,0.26590359,654.8,654.34,1.07547072]
[1751245701132,0.26590359,654.8,654.35,1.07547072]
[1751245701333,0.26590359,654.8,654.36,1.07547072]
[1751245701530,0.26590359,654.8,654.32,3.674]
[1751245701729,0.26590359,654.8,654.33,1.07546167]
[1751245701933,0.26590359,654.8,654.34,1.07546167]
[1751245702233,0.26590359,654.8,654.35,1.07546167]
[1751245702433,0.26590359,654.8,654.32,3.674]
[1751245702632,0.26590359,654.8,654.33,1.07545438]
[1751245702834,0.26590359,654.8,654.34,1.07545438]
[1751245703028,0.26590359,654.8,654.35,1.07545438]
[1751245703230,0.26590359,654.8,654.32,3.674]
[1751245703435,0.26590359,654.8,654.33,1.07544611]
[1751245703635,0.26590359,654.8,654.34,1.07544611]
[1751245703833,0.26590359,654.8,654.35,1.07544611]
[1751245704132,0.26590359,654.8,654.32,3.674]
[1751245704335,0.26590359,654.8,654.33,1.07543889]
[1751245704532,0.26590359,654.8,654.34,1.07543889]
[1751245704735,0.26590359,654.8,654.35,1.07543889]
[1751245704934,0.26590359,654.8,654.32,3.674]
[1751245705138,0.26590359,654.8,654.33,1.07543306]
[1751245705437,0.26590359,654.8,654.34,1.07543306]
[1751245705634,0.26590359,654.8,654.35,1.07543306]
[1751245705838,0.26590359,654.8,654.32,3.674]
[1751245706040,0.26590359,654.8,654.33,1.07542032]
[1751245706240,0.26590359,654.8,654.34,1.07542032]
[1751245706440,0.26590359,654.8,654.35,1.07542032]
[1751245706641,0.26590359,654.8,654.32,3.674]
[1751245710440,0.26590359,654.8,654.33,3.097]
[1751245712651,0.26590359,654.8,654.34,3.331]
[1751245739666,0.26590359,654.8,654.32,3.674]
[1751245741867,0.26590359,654.8,654.33,2.418]
[1751245742568,0.26590359,654.8,654.34,3.469]
[1751245746268,0.26590359,654.8,654.35,2.381]
[1751245761074,0.26590359,654.8,654.36,0.55239955]
[1751245761277,0.26590359,654.8,654.35,2.381]
[1751245761573,0.26590359,654.8,654.37,3.284]
[1751245761777,0.26590359,654.8,654.38,0.5522587]
[1751245761972,0.26590359,654.8,654.39,0.5522587]
[1751245762175,0.26590359,654.8,654.37,3.284]
[1751245762378,0.26590359,654.8,654.38,0.55210564]
[1751245762678,0.26590359,654.8,654.37,3.284]
[1751245764176,0.26590359,654.8,654.38,2.412]
[1751245764474,0.26590359,654.8,654.39,3.548]
[1751245773784,0.25440177,654.91,654.39,3.548]
[1751245775685,0.25439061,669.58,654.39,3.548]
[1751245775883,0.25439061,669.58,654.4,0.5509148]
[1751245776188,0.25439061,669.58,654.39,3.548]
[1751245776385,0.25439061,669.58,654.4,0.55079816]
[1751245776682,0.25439061,669.58,654.41,0.55079818]
[1751245776884,0.25439061,669.58,654.42,0.55079818]
[1751245777087,0.25439061,669.58,654.43,0.55079818]
[1751245777286,0.25439061,669.58,654.44,0.55079818]
[1751245777486,0.25439061,669.58,654.45,0.55079818]
[1751245777688,0.25439061,669.58,654.46,0.55079818]
[1751245777988,0.25439061,669.58,654.47,0.55079818]
[1751245778288,0.25439061,669.58,654.48,0.55079818]
[1751245778589,0.25439061,669.58,654.49,0.55079818]
[1751245778788,0.25439061,669.58,654.5,0.55079818]
[1751245778987,0.25439061,669.58,654.51,0.55079818]
[1751245779288,0.25439061,669.58,654.39,3.548]
[1751245779488,0.25439061,669.58,654.4,0.55023384]
[1751245779688,0.25439061,669.58,654.41,0.55023384]
[1751245779989,0.25439061,669.58,654.42,0.55023384]
[1751245780192,0.25439061,669.58,654.43,0.55023384]
[1751245780391,0.25439061,669.58,654.44,0.55023384]
[1751245780592,0.25439061,669.58,654.45,0.55023384]
[1751245780788,0.25439061,669.58,654.46,0.55023384]
[1751245780990,0.25439061,669.58,654.47,0.55023384]
[1751245781289,0.25439061,669.58,654.48,0.55023384]
[1751245781590,0.25439061,669.58,654.49,0.55023384]
[1751245781789,0.25439061,669.58,654.5,0.55023384]
[1751245781989,0.25439061,669.58,654.39,3.548]
[1751245782193,0.25439061,669.58,654.4,0.54994197]
[1751245782390,0.25439061,669.58,654.41,0.54994197]
[1751245782591,0.25439061,669.58,654.42,0.54994197]
[1751245782795,0.25439061,669.58,654.43,0.54994197]
[1751245783094,0.25439061,669.58,654.44,0.54994197]
[1751245783294,0.25439061,669.58,654.45,0.54994197]
[1751245783491,0.25439061,669.58,654.46,0.54994197]
[1751245783691,0.25439061,669.58,654.47,0.54994197]
[1751245783892,0.25439061,669.58,654.48,0.54994197]
[1751245784092,0.25439061,669.58,654.49,0.54994197]
[1751245784292,0.25439061,669.58,654.45,2.844]
[1751245784494,0.25439061,669.58,654.46,0.54962504]
[1751245784692,0.25439061,669.58,654.47,0.54962504]
[1751245784891,0.25439061,669.58,654.48,0.54962504]
[1751245785092,0.25439061,669.58,654.45,2.844]
[1751245785295,0.25439061,669.58,654.46,0.54961719]
[1751245785492,0.25439061,669.58,654.47,0.54961719]
[1751245785693,0.25439061,669.58,654.48,0.54961719]
[1751245785992,0.25439061,669.58,654.49,0.54961719]
[1751245786196,0.25439061,669.58,654.45,2.844]
[1751245786392,0.25439061,669.58,654.46,0.54946152]
[1751245786696,0.25439061,669.58,654.45,2.844]
[1751245792598,0.25439061,669.58,654.46,3.819]
[1751245798599,0.25439061,669.58,654.47,2.579]
[1751245811312,0.25439061,669.58,654.48,3.229]
[1751245815016,0.25439061,669.58,654.49,3.149]
[1751245818221,0.25439061,669.58,654.49,2.19403981]
[1751245828235,0.25439061,669.58,654.49,1.23874395]
[1751245833240,0.25439061,669.58,654.5,2.757]
[1751245849346,0.25439061,669.58,654.5,6.148]
[1751245861561,0.25439061,669.58,654.5,4.81038249]
[1751245863162,0.25439061,669.58,654.5,1.41938249]
[1751245863359,0.25439061,669.58,654.45,3.654]
[1751245865959,0.25439061,669.58,654.46,2.331]
[1751245868563,0.25439061,669.58,654.47,3.316]
[1751245871863,0.25439061,669.58,654.48,3.617]
[1751245886580,0.25439061,669.58,654.48,0.36770476]
[1751245897886,0.25439061,669.58,654.46,2.331]
[1751245898087,0.25439061,669.58,653.4,0.2545283]
[1751245898686,0.25439061,669.58,653.41,2.725]
[1751245899586,3.78993298,654.86,653.41,2.725]
[1751245900090,3.78993298,654.52,653.41,2.725]
[1751245900485,3.78993298,654.53,653.41,2.725]
[1751245901190,3.78993298,654.53,653.42,2.984]
[1751245901591,3.78993298,654.54,653.42,2.984]
[1751245902188,3.78993298,654.51,653.42,2.984]
[1751245902587,3.78993298,654.52,653.42,2.984]
[1751245902788,3.78993298,654.52,653.43,3.599]
[1751245903088,3.78993298,654.53,653.43,3.599]
[1751245903588,3.78993298,654.55,653.43,3.599]
[1751245904194,3.78993298,654.54,653.43,3.599]
[1751245904791,3.78993298,654.55,653.43,3.599]
[1751245906394,3.78993298,654.27,653.43,3.599]
[1751245906790,3.78993298,654.26,653.43,3.599]
[1751245908393,3.78993298,654.23,653.43,3.599]
[1751245908996,3.78993298,654.16,653.43,3.599]
[1751245910493,5.30590618,654.39,653.43,3.599]
[1751245910995,3.78993298,654.54,653.43,3.599]
[1751245912593,3.78993298,654.59,653.43,3.599]
[1751245915893,3.78993298,654.59,653.44,1.0700741]
[1751245916100,3.78993298,654.59,653.5,1.14406044]
[1751245916299,3.78993298,656.2,653.51,1.0700741]
[1751245916599,3.78993298,656.2,653.52,1.77018601]
[1751245916796,3.78993298,656.21,653.53,1.77018601]
[1751245917098,3.78993298,656.21,653.54,1.77018601]
[1751245917299,3.78993298,656.17,653.55,1.77018601]
[1751245917499,3.78993298,656.17,653.56,1.77018601]
[1751245917795,3.78993298,656.17,653.57,1.77018601]
[1751245917995,3.78993298,656.17,653.58,1.77018601]
[1751245918196,3.78993298,656.17,653.59,1.77018601]
[1751245918495,3.78993298,656.17,653.6,1.77018601]
[1751245918694,3.78993298,656.17,653.61,1.77018601]
[1751245918899,3.78993298,656.17,653.62,1.77018601]
[1751245919199,3.78993298,656.17,653.63,1.77018601]
[1751245919399,3.78993298,656.15,653.64,1.77018601]
[1751245919599,3.78993298,656.15,653.65,1.77018601]
[1751245919798,3.78993298,656.15,653.66,1.77018601]
[1751245919994,3.78993298,656.15,653.67,1.77018601]
[1751245920299,3.78993298,656.15,653.68,4.90118601]
[1751245920498,3.78993298,656.15,653.69,1.77018601]
[1751245920698,3.78993298,656.15,653.7,1.77018601]
[1751245920899,3.78993298,656.15,653.71,1.77018601]
[1751245921195,3.78993298,656.15,653.72,1.77018601]
[1751245921395,3.78993298,656.15,653.73,1.77018601]
[1751245921697,3.78993298,656.14,653.74,1.77018601]
[1751245921896,3.78993298,656.14,653.75,1.77018601]
[1751245922096,3.78993298,656.23,653.76,1.77018601]
[1751245922397,3.78993298,656.23,653.77,1.77018601]
[1751245922595,3.78993298,656.22,653.78,1.77018601]
[1751245922794,3.78993298,656.22,653.79,1.77018601]
[1751245922996,3.78993298,656.22,653.8,1.77018601]
[1751245923296,3.78993298,656.16,653.81,1.77018601]
[1751245923599,3.78993298,656.16,653.82,1.77018601]
[1751245923794,3.78993298,656.16,653.83,1.77018601]
[1751245924002,3.78993298,656.16,653.84,1.77018601]
[1751245924299,3.78993298,656.16,653.85,1.77018601]
[1751245924499,3.78993298,656.16,653.86,1.77018601]
[1751245924799,3.78993298,656.11,653.87,1.77018601]
[1751245924994,3.78993298,656.11,653.88,1.77018601]
[1751245925293,3.78993298,656.11,653.89,1.77018601]
[1751245925494,3.78993298,656.11,653.9,1.77018601]
[1751245925700,3.78993298,656.11,653.91,1.77018601]
[1751245925895,3.78993298,656.11,653.92,0.70011191]
[1751245926095,3.78993298,656.11,653.93,0.70011191]
[1751245926299,3.78993298,655.34,653.94,0.70011191]
[1751245926497,3.78993298,655.34,653.95,0.70011191]
[1751245926698,3.78993298,655.33,653.68,3.131]
[1751245927802,3.78993298,655.31,653.68,3.131]
[1751245928298,3.78993298,655.3,653.68,3.131]
[1751245929403,3.78993298,655.2,653.68,3.131]
[1751245930404,3.78993298,655.19,653.68,3.131]
[1751245931105,3.78993298,655.19,653.69,2.07]
[1751245931701,3.78993298,655.14,653.69,2.07]
[1751245932506,3.78993298,655.13,653.69,2.07]
[1751245933507,3.78993298,655.12,653.69,2.07]
[1751245934602,3.78993298,655.11,653.69,2.07]
[1751245935607,3.78993298,655.01,653.69,2.07]
[1751245936008,3.78993298,655.01,653.7,1.07190196]
[1751245936303,3.78993298,655.01,653.69,2.07]
[1751245936304,3.78993298,655.1,653.71,1.07190196]
[1751245936607,3.78993298,655.1,653.72,1.07190196]
[1751245936807,3.78993298,655.2,653.73,1.07190196]
[1751245937009,3.78993298,655.2,653.74,1.07190196]
[1751245937211,3.78993298,655.2,653.75,1.07190196]
[1751245937406,3.78993298,655.2,653.69,2.07]
[1751245937610,3.78993298,655.2,653.7,1.07224285]
[1751245937807,3.78993298,655.18,653.71,1.07224285]
[1751245938007,3.78993298,655.18,653.72,1.07224285]
[1751245938206,3.78993298,655.18,653.73,1.07224285]
[1751245938412,3.78993298,655.18,653.74,1.07224285]
[1751245938613,3.78993298,655.18,653.75,1.07224285]
[1751245938806,3.78993298,655.17,653.69,2.07]
[1751245939009,3.78993298,655.17,653.7,1.07243374]
[1751245939308,3.78993298,655.19,653.71,1.07243374]
[1751245939512,3.78993298,655.19,653.72,1.07243374]
[1751245939710,3.78993298,655.19,653.73,1.07243374]
[1751245940009,3.78993298,655.18,653.74,1.07243374]
[1751245940210,3.78993298,655.18,653.75,1.07243374]
[1751245940414,3.78993298,655.42,653.76,1.07243374]
[1751245940614,3.78993298,655.42,653.77,1.07243374]
[1751245940813,3.78993298,655.42,653.69,2.07]
[1751245941011,3.78993298,655.42,653.7,1.07285508]
[1751245941212,3.78993298,655.42,653.71,1.07285508]
[1751245941417,3.78993298,655.39,653.72,1.07285508]
[1751245941714,3.78993298,655.39,653.73,1.07285508]
[1751245941913,3.78993298,655.39,653.69,2.07]
[1751245941914,3.78993298,655.36,653.74,1.07285508]
[1751245942111,3.78993298,655.36,653.69,2.07]
[1751245942112,3.78993298,655.36,653.75,1.07285508]
[1751245942315,3.78993298,655.36,653.76,1.07285508]
[1751245942514,3.78993298,655.36,653.77,1.07285508]
[1751245942713,3.78993298,655.36,653.78,1.07285508]
[1751245943013,3.78993298,655.36,653.69,2.07]
[1751245943217,3.78993298,655.36,653.7,1.07334427]
[1751245943418,3.78993298,655.35,653.71,1.07334427]
[1751245943713,3.78993298,655.35,653.72,1.07334427]
[1751245943914,3.78993298,655.35,653.73,1.07334427]
[1751245944117,3.78993298,655.35,653.74,1.07334427]
[1751245944318,3.78993298,655.35,653.75,1.07334427]
[1751245944519,3.78993298,655.34,653.76,1.07334427]
[1751245944721,3.78993298,655.34,653.77,1.07334427]
[1751245945019,3.78993298,655.39,653.78,1.07334427]
[1751245945219,3.78993298,655.39,653.79,1.07334427]
[1751245945420,3.78993298,655.39,653.8,1.07334427]
[1751245945714,3.78993298,655.39,653.69,2.07]
[1751245945915,3.78993298,655.39,653.7,1.07373751]
[1751245946119,3.78993298,655.36,653.71,1.07373751]
[1751245946416,3.78993298,655.36,653.72,1.07373751]
[1751245946615,3.78993298,655.33,653.73,1.07373751]
[1751245946820,3.78993298,655.33,653.74,1.07373751]
[1751245947016,3.78993298,655.33,653.75,1.07373751]
[1751245947217,3.78993298,655.33,653.76,1.07373751]
[1751245947521,3.78993298,655.33,653.77,1.07373751]
[1751245947721,3.78993298,655.34,653.78,0.70081696]
[1751245947917,3.78993298,655.34,653.79,0.70081696]
[1751245948217,3.78993298,655.34,653.8,0.70081696]
[1751245948417,3.78993298,655.34,653.81,0.70081696]
[1751245948617,3.78993298,655.38,653.82,0.70268554]
[1751245948819,3.78993298,655.38,653.71,3.037]
[1751245949020,3.78993298,655.38,653.72,1.77638028]
[1751245949220,3.78993298,655.38,653.73,1.77638028]
[1751245949420,3.78993298,655.38,653.74,1.77638028]
[1751245949618,3.78993298,655.38,653.75,1.77638028]
[1751245949819,3.78993298,655.36,653.76,1.77638028]
[1751245950019,3.78993298,655.36,653.77,1.77638028]
[1751245950221,3.78993298,655.22,653.78,1.77638028]
[1751245950416,3.78993298,655.22,653.79,0.70268554]
[1751245950715,3.78993298,655.22,653.8,0.70268554]
[1751245950920,3.78993298,655.22,653.71,3.037]
[1751245951117,3.78993298,655.22,653.72,1.77628238]
[1751245951417,3.78993298,655.22,653.73,1.77628238]
[1751245951617,3.78993298,655.22,653.74,1.77628238]
[1751245951821,3.78993298,655.22,653.75,1.77628238]
[1751245952020,3.78993298,655.22,653.76,1.77628238]
[1751245952219,3.78993298,655.22,653.77,1.77628238]
[1751245952418,3.78993298,655.21,653.78,0.70265189]
[1751245952622,3.78993298,655.21,653.79,0.70265189]
[1751245952819,3.78993298,655.21,653.8,0.70265189]
[1751245953019,3.78993298,655.21,653.71,3.037]
[1751245953219,3.78993298,655.21,653.72,1.77619428]
[1751245953418,3.78993298,655.21,653.73,1.77619428]
[1751245953617,3.78993298,655.21,653.74,1.77619428]
[1751245953918,3.78993298,655.22,653.75,1.77619428]
[1751245954117,3.78993298,655.22,653.76,1.77619428]
[1751245954317,3.78993298,655.22,653.77,1.77619428]
[1751245954523,3.78993298,655.22,653.78,0.70262103]
[1751245954719,3.78993298,655.22,653.79,0.70262103]
[1751245955022,3.78993298,655.14,653.71,3.037]
[1751245955219,3.78993298,655.14,653.72,1.77611387]
[1751245955419,3.78993298,655.15,653.73,1.77611387]
[1751245955621,3.78993298,655.15,653.74,1.77611387]
[1751245955817,3.78993298,655.15,653.75,1.77611387]
[1751245956020,3.78993298,655.14,653.76,1.77611387]
[1751245956224,3.78993298,655.14,653.77,1.77611387]
[1751245956422,3.78993298,655.07,653.78,0.70259313]
[1751245956624,3.78993298,655.07,653.79,0.70256799]
[1751245956821,3.78993298,655.07,653.8,0.70256799]